bitfinex/quotes_SOLUSD_20211001
["timestamp","ask_amount","ask_price","bid_price","bid_amount"]
[1633119596933,0.04176,160.98,160.8,77.1815]
[1633119597137,0.04176,161.05,160.81,173.0684]
[1633119597331,0.04176,161.05,160.81,226.36131333]
[1633119597532,0.04176,161.05,160.82,47.33359025]
[1633119597731,0.04176,161.05,160.82,72.07935017]
[1633119597931,0.04176,161.05,160.83,53.29291333]
[1633119598130,0.04176,161.05,160.83,114.58291333]
[1633119598331,0.04176,161.05,160.84,24.74575992]
[1633119598531,0.04176,161.09,160.85,2.79369568]
[1633119598731,0.04176,161.09,160.85,63.58369568]
[1633119599333,0.04176,161.09,160.85,2.29369568]
[1633119599535,0.04176,161.05,160.85,154.03389568]
[1633119600736,0.04176,161.02,160.85,154.03389568]
[1633119600934,0.04176,161.05,160.85,154.03389568]
[1633119601934,0.04176,161.05,160.85,81.44099568]
[1633119602537,0.04176,161.05,160.86,76.6793]
[1633119604441,0.04176,161.05,160.86,137.9693]
[1633119604643,0.04176,161.06,160.86,76.6793]
[1633119604842,0.04176,161.06,160.86,137.9693]
[1633119605242,0.04176,161.06,160.86,92.6293]
[1633119608345,0.04176,161.06,160.86,98.02821821]
[1633119608545,0.04176,161.06,160.86,517.65660202]
[1633119609145,0.04176,161.06,160.86,578.94660202]
[1633119609545,0.04176,161.06,160.96,0.46943974]
[1633119612552,29.87115162,161.07,160.96,0.46943974]
[1633119612748,0.04176,161.07,160.96,0.46943974]
[1633119612948,0.04176,161.1,160.96,0.46943974]
[1633119613952,0.04176,161.11,160.96,23.11743974]
[1633119614150,0.04176,161.12,160.97,2.59703244]
[1633119614351,0.04176,161.2,160.97,186.25496363]
[1633119614551,78.86826,161.22,160.98,89.30576407]
[1633119614752,15.5209,161.2,161.09,0.23471987]
[1633119614949,15.5209,161.2,161.09,0.46943974]
[1633119615952,15.5209,161.2,161.01,113.8239]
[1633119616552,0.04176,161.19,161.01,113.8239]
[1633119616953,0.04176,161.19,161.02,14.37114786]
[1633119617553,0.04176,161.19,161.02,40.111805]
[1633119617755,15.5209,161.2,161.02,69.82173619]
[1633119617953,15.5209,161.2,161.02,131.11173619]
[1633119618156,15.5209,161.2,161.02,69.82173619]
[1633119619155,15.5209,161.2,161.03,61.29]
[1633119619959,15.5209,161.2,161.03,116.74058833]
[1633119620156,15.5209,161.2,161.05,5.81706141]
[1633119621556,30.29856852,161.21,161.05,5.81706141]
[1633119626058,30.29856852,161.21,161.05,5.31706141]
[1633119626758,0.04176,161.22,161.05,5.31706141]
[1633119626959,0.04176,161.24,161.05,5.31706141]
[1633119627159,0.04176,161.24,161.05,66.60706141]
[1633119627560,22.90819993,161.24,161.05,66.60706141]
[1633119627760,0.04176,161.23,161.05,66.60706141]
[1633119629165,0.04176,161.23,161.05,5.31706141]
[1633119630768,0.04176,161.23,161.05,66.60706141]
[1633119631964,0.04176,161.23,161.05,117.74843863]
[1633119634071,0.04176,161.27,161.05,169.21043863]
[1633119634271,0.04176,161.28,161.09,2.47189979]
[1633119634570,0.04176,161.3,161.1,26.22772306]
[1633119634771,0.04176,161.34,161.11,61.29]
[1633119634969,0.04176,161.34,161.12,361.45334786]
[1633119635168,0.04176,161.34,161.12,422.74334786]
[1633119635369,0.04176,161.34,161.12,474.9879773]
[1633119635569,0.04176,161.34,161.13,52.24462944]
[1633119635769,0.04176,161.34,161.13,75.82062944]
[1633119635971,0.04176,161.34,161.15,5.31706141]
[1633119636169,0.04176,161.34,161.16,61.29]
[1633119637368,0.04176,161.34,161.15,66.60706141]
[1633119639171,0.04176,161.34,161.15,118.85169085]
[1633119639371,0.04176,161.34,161.15,57.56169085]
[1633119641073,0.04176,161.34,161.15,118.85169085]
[1633119641773,0.04176,161.34,161.15,116.35169085]
[1633119645576,0.04176,161.34,161.15,55.06169085]
[1633119647178,0.04176,161.34,161.16,67.62150805]
[1633119647378,0.04176,161.34,161.17,6.31580487]
[1633119647579,0.04176,161.35,161.18,12.59855023]
[1633119648784,25.24853644,161.36,161.18,12.59855023]
[1633119648980,0.04176,161.34,161.18,12.59855023]
[1633119649782,23.2081389,161.32,161.18,12.59855023]
[1633119649979,0.04176,161.31,161.18,12.59855023]
[1633119654485,0.04176,161.31,161.17,28.5066223]
[1633119655084,0.04176,161.31,161.13,77.3409]
[1633119655284,6.95046383,161.31,161.1,352.99772462]
[1633119655484,18.14949704,161.3,161.1,352.99772462]
[1633119655684,22.67968095,161.29,161.1,352.99772462]
[1633119655883,0.04176,161.28,161.1,352.99772462]
[1633119656389,30.35688966,161.23,161.1,352.99772462]
[1633119657385,30.35688966,161.23,161.09,14.99915057]
[1633119659987,30.35688966,161.23,161.06,3.37831761]
[1633119660188,30.35688966,161.23,161.06,9.5568867]
[1633119660490,30.39864966,161.23,161.06,9.5568867]
[1633119660688,30.39864966,161.23,161.06,6.17856909]
[1633119660888,30.39864966,161.23,161.07,16.336313]
[1633119664393,30.39864966,161.23,161.05,147.4889]
[1633119664790,0.04176,161.21,161.05,75.1356]
[1633119664990,0.04176,161.21,161.03,389.33242153]
[1633119665791,0.04176,161.21,161.04,3.44286536]
[1633119666793,26.86842689,161.19,161.04,3.44286536]
[1633119666993,0.04176,161.18,161.04,3.44286536]
[1633119667191,26.86842689,161.19,161.04,3.44286536]
[1633119667391,26.91018689,161.19,161.04,3.44286536]
[1633119670996,0.04176,161.19,161.04,3.44286536]
[1633119671199,0.04176,161.19,161.04,20.69160394]
[1633119671398,0.04176,161.23,161.05,61.29]
[1633119671597,0.04176,161.29,161.05,61.29]
[1633119671798,0.04176,161.29,161.06,49.81001833]
[1633119671998,25.18969389,161.29,161.07,13.74534391]
[1633119672199,25.18969389,161.29,161.07,120.7528551]
[1633119672397,25.18969389,161.29,161.08,61.29]
[1633119672599,25.18969389,161.29,161.08,79.014]
[1633119672799,25.18969389,161.29,161.1,3.44286536]
[1633119673002,0.04176,161.28,161.1,3.44286536]
[1633119674703,15.5146,161.25,161.1,3.44286536]
[1633119674901,26.20727886,161.24,161.12,389.38718788]
[1633119675104,26.20727886,161.24,161.13,12.78042469]
[1633119675505,26.20727886,161.24,161.12,389.38718788]
[1633119676304,15.5194,161.2,161.03,23.65278492]
[1633119676503,25.86546806,161.19,161.03,39.70448602]
[1633119676902,25.86546806,161.19,161.06,549.91708342]
[1633119677305,25.86546806,161.19,161.03,39.70448602]
[1633119677502,46.59246806,161.19,161.03,23.65278492]
[1633119677903,46.63422806,161.19,161.03,23.65278492]
[1633119678505,46.63422806,161.19,161.04,14.56199299]
[1633119678703,25.90722806,161.19,161.04,14.56199299]
[1633119684109,25.90722806,161.19,161.03,23.65278492]
[1633119684306,25.90722806,161.19,161.04,6.41111622]
[1633119684508,0.04176,161.19,161.06,3.31416728]
[1633119684707,0.04176,161.24,161.06,3.31416728]
[1633119684906,0.04176,161.29,161.09,3.28158039]
[1633119685112,122.59200451,161.41,161.12,3.2691348]
[1633119685113,0.04176,161.32,161.12,3.2691348]
[1633119685313,0.04176,161.33,161.13,64.54971391]
[1633119685508,1.79715495,161.37,161.14,86.53236621]
[1633119685709,22.17604755,161.36,161.19,3.18335447]
[1633119685908,22.17604755,161.36,161.2,3.15973938]
[1633119686107,22.17604755,161.36,161.2,6.29088711]
[1633119686309,22.17604755,161.36,161.2,24.01016244]
[1633119686507,22.17604755,161.36,161.21,6.34570088]
[1633119686910,22.17604755,161.36,161.18,9.54954931]
[1633119687109,22.17604755,161.36,161.18,70.83954931]
[1633119687310,22.17604755,161.36,161.19,6.34080056]
[1633119687909,22.17604755,161.36,161.19,32.88247437]
[1633119688109,22.21780755,161.36,161.19,26.54167381]
[1633119688909,22.21780755,161.36,161.2,79.826]
[1633119689509,22.17604755,161.36,161.2,79.826]
[1633119689710,0.04176,161.35,161.2,79.826]
[1633119691412,0.04176,161.35,161.18,31.51807035]
[1633119695619,15.509,161.31,161.18,31.51807035]
[1633119695820,21.55106504,161.3,161.18,31.51807035]
[1633119697126,0.04176,161.33,161.18,31.51807035]
[1633119697324,0.04176,161.36,161.18,31.51807035]
[1633119697723,0.04176,161.36,161.15,268.7538]
[1633119697929,22.08433963,161.36,161.15,268.7538]
[1633119698122,22.08433963,161.36,161.15,293.93596269]
[1633119698324,22.08433963,161.36,161.16,31.24499813]
[1633119700841,22.08433963,161.36,161.16,56.42716082]
[1633119701226,22.08433963,161.36,161.17,31.24499813]
[1633119701627,22.08433963,161.36,161.17,56.42716082]
[1633119701826,0.04176,161.35,161.17,56.42716082]
[1633119702027,0.04176,161.35,161.18,31.24499813]
[1633119703130,0.04176,161.35,161.18,52.26499813]
[1633119704027,0.04176,161.35,161.18,397.82826601]
[1633119707230,0.04176,161.36,161.18,397.82826601]
[1633119709034,0.04176,161.36,161.19,31.24499813]
[1633119711740,0.04176,161.36,161.18,25.10474047]
[1633119711936,29.22004155,161.35,161.15,73.3933]
[1633119712136,0.04176,161.34,161.15,73.3933]
[1633119712937,0.04176,161.3,161.15,73.3933]
[1633119713540,0.04176,161.33,161.15,73.3933]
[1633119713738,27.51854687,161.31,161.15,73.3933]
[1633119713939,0.04176,161.3,161.15,73.3933]
[1633119714541,0.04176,161.3,161.13,15.24284539]
[1633119715342,0.04176,161.3,161.11,79.35839983]
[1633119715542,15.5134,161.27,161.11,79.35839983]
[1633119715743,15.5134,161.27,161.1,3.31810821]
[1633119715955,15.5134,161.27,161.08,28.43196317]
[1633119716158,0.04176,161.26,161.09,3.30405108]
[1633119716357,23.97291941,161.26,161.09,18.5657561]
[1633119716558,0.04176,161.25,161.1,6.47003957]
[1633119717757,0.04176,161.25,161.09,12.07655829]
[1633119718457,0.04176,161.25,161.08,28.47049148]
[1633119718664,0.04176,161.25,161.09,6.67155722]
[1633119718860,0.04176,161.25,161.08,25.10474047]
[1633119719259,0.04176,161.25,161.07,335.53757149]
[1633119719460,0.04176,161.24,161.05,150.6741]
[1633119719659,0.04176,161.24,161.05,154.9885614]
[1633119720059,0.04176,161.25,161.05,154.9885614]
[1633119720260,0.04176,161.25,161.06,6.66085024]
[1633119720860,0.04176,161.25,161.05,154.9885614]
[1633119721061,0.04176,161.25,161.06,6.66995309]
[1633119721264,0.04176,161.25,161.05,154.9885614]
[1633119721962,0.04176,161.25,161.06,6.65921195]
[1633119722363,0.04176,161.25,161.05,154.9885614]
[1633119722664,0.04176,161.25,161.06,6.65284426]
[1633119723465,0.04176,161.25,161.05,154.9885614]
[1633119723870,234.5367614,161.04,160.99,154.59836167]
[1633119724067,61.33176,161.25,160.9,13.67222588]
[1633119724068,119.77373,161.03,160.9,13.67222588]
[1633119724267,13.90212216,160.94,160.83,117.2]
[1633119724467,13.90212216,160.94,160.65,0.07]
[1633119724468,1.70994531,160.91,160.65,0.07]
[1633119724670,0.04176,160.8,160.65,0.07]
[1633119724867,0.04176,160.81,160.65,0.07]
[1633119725067,0.04176,160.83,160.65,0.07]
[1633119725270,0.04176,160.79,160.65,0.07]
[1633119725468,0.04176,160.83,160.65,0.07]
[1633119725670,0.04176,160.89,160.65,0.07]
[1633119725869,0.04176,160.89,160.63,27.95665426]
[1633119726472,0.04176,160.9,160.63,27.95665426]
[1633119726669,0.04176,160.9,160.63,43.50145426]
[1633119726870,0.04176,160.94,160.64,21.70949832]
[1633119727069,0.04176,160.94,160.69,2.49690346]
[1633119727272,0.04176,160.99,160.7,28.4694308]
[1633119727469,0.04176,161.03,160.71,190.9793]
[1633119727673,0.04176,161.03,160.72,1.80311333]
[1633119727872,0.04176,161.03,160.73,26.89814111]
[1633119728070,0.04176,161.03,160.74,3.17372515]
[1633119729171,0.04176,161.03,160.74,21.46072515]
[1633119729771,0.04176,161.03,160.74,41.92788269]
[1633119730175,0.04176,161.03,160.74,64.61743657]
[1633119730573,0.04176,161.03,160.74,67.18655233]
[1633119730773,0.04176,161.03,160.74,64.61743657]
[1633119731173,0.04176,161.03,160.77,508.14945994]
[1633119731374,0.04176,161.03,160.78,32.77415492]
[1633119731972,0.04176,161.03,160.78,30.04607099]
[1633119732573,0.04176,161.03,160.78,29.54607099]
[1633119733174,0.04176,160.92,160.78,29.54607099]
[1633119733373,0.04176,160.89,160.78,29.54607099]
[1633119733574,0.04176,160.86,160.69,190.9919]
[1633119733774,0.04176,160.83,160.56,15.554]
[1633119733975,0.04176,160.87,160.62,2.48499835]
[1633119734177,0.04176,160.9,160.58,46.33145644]
[1633119734374,0.04176,160.91,160.63,22.68955388]
[1633119734574,0.04176,160.91,160.64,28.9248927]
[1633119734975,0.04176,160.91,160.64,49.39205024]
[1633119735375,0.04176,160.91,160.64,72.08160412]
[1633119735977,0.04176,160.91,160.65,186.9805]
[1633119736177,0.04176,160.91,160.66,1.92694967]
[1633119736381,0.04176,160.91,160.67,27.8801486]
[1633119736782,0.04176,160.94,160.68,61.29]
[1633119736980,0.04176,160.94,160.69,75.1487]
[1633119737181,0.04176,160.94,160.7,31.17649385]
[1633119737380,0.04176,160.94,160.7,29.66951165]
[1633119737781,0.04176,160.94,160.71,72.71]
[1633119738583,0.04176,160.91,160.71,72.71]
[1633119739986,420.22148844,161.01,160.71,72.71]
[1633119740186,0.04176,160.94,160.71,72.71]
[1633119740985,56.28955473,160.94,160.74,0.494178]
[1633119741189,0.04176,160.86,160.74,0.494178]
[1633119741388,0.04176,160.83,160.74,0.494178]
[1633119742189,0.04176,160.83,160.75,23.71905165]
[1633119742588,0.04176,160.87,160.75,23.71905165]
[1633119743988,481.4551779,160.91,160.75,23.71905165]
[1633119743989,0.04176,160.9,160.75,23.71905165]
[1633119744389,26.96809762,160.9,160.75,23.71905165]
[1633119744593,0.04176,160.89,160.75,23.71905165]
[1633119744791,0.04176,160.89,160.74,0.494178]
[1633119744991,0.04176,160.87,160.74,0.494178]
[1633119745390,26.92633762,160.86,160.74,0.494178]
[1633119745591,0.04176,160.84,160.74,0.494178]
[1633119745992,26.92633762,160.83,160.74,0.494178]
[1633119746192,0.04176,160.81,160.74,0.494178]
[1633119746593,0.04176,160.77,160.74,7.8e-05]
[1633119746794,21.45176,160.77,160.74,7.8e-05]
[1633119746995,0.04176,160.76,160.74,7.8e-05]
[1633119747395,0.041682,160.74,160.56,77.0503]
[1633119747596,0.041682,160.74,160.55,22.80983339]
[1633119747796,0.041682,160.74,160.56,75.322]
[1633119748796,0.041682,160.74,160.56,147.409]
[1633119749396,26.96801962,160.74,160.55,22.80983339]
[1633119749596,0.041682,160.73,160.55,95.26883339]
[1633119749998,26.96801962,160.73,160.55,95.26883339]
[1633119750197,0.041682,160.72,160.44,72.0955]
[1633119750398,0.041682,160.72,160.53,153.24]
[1633119750599,26.96801962,160.71,160.53,153.24]
[1633119750799,0.041682,160.7,160.53,153.24]
[1633119750998,0.041682,160.71,160.54,72.7221]
[1633119751198,0.041682,160.75,160.55,29.43913901]
[1633119751597,0.041682,160.79,160.55,29.43913901]
[1633119751997,26.96801962,160.79,160.55,29.43913901]
[1633119752198,0.041682,160.78,160.55,29.43913901]
[1633119752598,26.92633762,160.77,160.55,29.43913901]
[1633119752798,0.041682,160.76,160.55,29.43913901]
[1633119753198,26.96801962,160.76,160.55,29.43913901]
[1633119753397,0.041682,160.75,160.55,29.43913901]
[1633119753798,26.92633762,160.74,160.55,29.43913901]
[1633119753999,26.96801962,160.74,160.55,29.43913901]
[1633119754600,30.93,160.73,160.55,29.43913901]
[1633119755401,533.84183075,160.74,160.55,29.43913901]
[1633119756204,26.92633762,160.73,160.55,29.43913901]
[1633119756606,28.8307943,160.72,160.55,29.43913901]
[1633119756802,28.8307943,160.72,160.54,72.7221]
[1633119757003,26.96801962,160.71,160.54,72.7221]
[1633119757202,0.041682,160.7,160.54,72.7221]
[1633119757403,55.79881392,160.7,160.54,72.7221]
[1633119757606,55.79881392,160.69,160.3,117.2]
[1633119757803,0.041682,160.68,160.49,23.91844409]
[1633119758002,55.79881392,160.68,160.49,23.91844409]
[1633119758205,26.96801962,160.67,160.49,23.91844409]
[1633119758407,0.041682,160.66,160.38,76.8724]
[1633119758608,444.79539604,160.64,160.38,76.8724]
[1633119758803,0.041682,160.63,160.49,79.266]
[1633119759405,26.96801962,160.63,160.49,79.266]
[1633119759605,0.041682,160.62,160.52,1998.0]
[1633119760004,26.92633762,160.61,160.52,1998.0]
[1633119760208,0.041682,160.6,160.52,1997.5]
[1633119760604,26.96801962,160.6,160.52,1997.5]
[1633119760803,0.041682,160.59,160.52,1997.5]
[1633119761204,26.92633762,160.58,160.52,1819.60341694]
[1633119761406,7.02173,160.57,160.52,1746.4763386]
[1633119761604,61.29,160.56,160.52,1746.4763386]
[1633119761805,2.5611144,160.53,160.52,1746.4763386]
[1633119762005,28.6495264,160.53,160.52,1746.4763386]
[1633119762206,28.6078444,160.53,160.52,1746.4137766]
[1633119762404,28.6078444,160.53,160.52,1662.5368966]
[1633119762405,116.82418202,160.53,160.52,1662.5368966]
[1633119762610,115.29497632,160.53,160.52,1662.5368966]
[1633119762809,26.04673,160.53,160.52,1662.5368966]
[1633119763005,7.02173,160.53,160.52,1662.5368966]
[1633119763606,7.02173,160.53,160.52,1690.44607105]
[1633119763807,7.02173,160.53,160.52,1662.5368966]
[1633119764807,7.02173,160.53,160.52,1692.40124984]
[1633119765809,30.93,160.59,160.52,1692.40124984]
[1633119766010,32.6859723,160.58,160.52,1692.40124984]
[1633119766210,30.93,160.57,160.52,1692.40124984]
[1633119767010,475.39784477,160.64,160.52,1692.40124984]
[1633119769413,506.10641685,160.64,160.52,1692.40124984]
[1633119770016,30.93,160.63,160.52,1692.40124984]
[1633119770216,444.79539604,160.64,160.52,1692.40124984]
[1633119770416,444.79539604,160.64,160.53,0.0421776]
[1633119772216,499.34641686,160.64,160.53,0.0421776]
[1633119772617,560.63641686,160.64,160.52,1692.40124984]
[1633119772819,499.34641686,160.64,160.52,1692.40124984]
[1633119773022,444.79539604,160.64,160.52,1692.40124984]
[1633119773221,444.79539604,160.64,160.53,0.0421776]
[1633119774223,473.03396812,160.64,160.53,0.0421776]
[1633119774621,534.32396812,160.64,160.52,1692.44342744]
[1633119774822,534.32396812,160.64,160.52,1692.40124984]
[1633119775023,550.00796812,160.64,160.52,1692.40124984]
[1633119775925,30.93,160.63,160.52,1692.40124984]
[1633119776123,92.22,160.63,160.52,1692.40124984]
[1633119776324,30.93,160.63,160.52,1692.40124984]
[1633119776523,444.79539604,160.64,160.53,0.0421776]
[1633119777523,444.79539604,160.64,160.56,0.0421776]
[1633119778124,444.79539604,160.64,160.53,0.0421776]
[1633119780829,444.79539604,160.64,160.52,1692.40124984]
[1633119781228,28.23857208,160.63,160.52,1692.40124984]
[1633119782030,475.72539604,160.64,160.52,1692.40124984]
[1633119782232,444.79539604,160.64,160.52,1692.40124984]
[1633119782629,444.79539604,160.64,160.52,1692.44342744]
[1633119782829,28.23857208,160.63,160.52,1692.40124984]
[1633119783029,29.67195593,160.63,160.52,1692.40124984]
[1633119783831,29.67195593,160.63,160.52,1662.5368966]
[1633119783832,61.29,160.62,160.52,1662.5368966]
[1633119784032,96.55030208,160.62,160.52,1662.5368966]
[1633119784231,28.23857208,160.61,160.52,1662.5368966]
[1633119784429,35.26030208,160.61,160.52,1662.5368966]
[1633119784631,36.67998765,160.61,160.52,1662.5368966]
[1633119784832,1.42440058,160.59,160.52,1662.5368966]
[1633119785030,1.42440058,160.59,160.52,1685.89846128]
[1633119785232,1.43972962,160.6,160.52,1685.89846128]
[1633119785631,1.43972962,160.6,160.52,1662.5368966]
[1633119785833,29.6783017,160.6,160.52,1662.5368966]
[1633119786033,1.43575534,160.59,160.52,1662.5368966]
[1633119786733,1.43852882,160.57,160.52,1662.5368966]
[1633119787131,25.25452882,160.57,160.52,1662.5368966]
[1633119787334,1.42055348,160.56,160.52,1662.5368966]
[1633119787536,480.41187591,160.54,160.52,1662.5368966]
[1633119788334,481.82330309,160.54,160.52,1662.5368966]
[1633119788935,61.29,160.53,160.52,1662.5368966]
[1633119789136,69.71530771,160.53,160.52,1662.5368966]
[1633119789535,97.95387979,160.53,160.52,1662.5368966]
[1633119789735,96.55030208,160.53,160.52,1662.5368966]
[1633119789937,112.48430208,160.53,160.52,1662.5368966]
[1633119790140,143.41430208,160.53,160.52,1662.5368966]
[1633119791539,194.87630208,160.53,160.52,1644.1369966]
[1633119792139,207.12096613,160.53,160.52,1592.79791149]
[1633119792338,218.37511748,160.53,160.52,1592.79791149]
[1633119792541,218.37511748,160.53,160.52,1582.92871149]
[1633119792741,218.37511748,160.53,160.52,1446.04827491]
[1633119792940,218.37511748,160.53,160.52,724.28140217]
[1633119792941,224.14990144,160.53,160.52,724.28140217]
[1633119793140,367.74911946,160.53,160.52,461.10840217]
[1633119793340,599.56182089,160.52,160.48,0.09005594]
[1633119793541,34.86212383,160.34,159.98,592.34073385]
[1633119793744,119.77373,160.33,160.14,0.0421776]
[1633119793943,143.2725454,160.33,160.29,0.0001]
[1633119794140,63.72163115,160.32,160.14,0.0421776]
[1633119794341,1.18097065,160.24,160.14,0.0421776]
[1633119794542,7.02173,160.23,160.14,0.0421776]
[1633119794740,61.29,160.22,160.14,0.0421776]
[1633119794940,61.29,160.22,160.01,79.5668]
[1633119794941,7.02173,160.21,160.01,79.5668]
[1633119795140,7.02173,160.21,160.11,0.0421776]
[1633119795341,7.02173,160.21,159.71,450.1306]
[1633119795342,1.0,160.19,160.03,0.0421776]
[1633119795543,1.0,160.19,160.0,37.49683759]
[1633119795544,0.02088,160.12,160.0,37.49683759]
[1633119795744,2.42686876,160.04,160.0,2.04459528]
[1633119795942,2.41950062,160.01,160.0,2.04459528]
[1633119796144,9.44123062,160.01,160.0,2.04459528]
[1633119796346,9.44123062,160.01,159.63,26.18835228]
[1633119796545,0.47297022,160.0,159.79,0.02088]
[1633119796744,2.19352031,160.16,159.67,1.59438578]
[1633119796943,0.0421776,160.17,159.8,47.66507586]
[1633119797144,0.0421776,160.19,159.8,47.66507586]
[1633119797344,28.99522178,160.17,159.82,29.76516845]
[1633119797544,28.99522178,160.17,159.83,154.8949]
[1633119797744,2.40064304,160.12,159.84,118.9702]
[1633119797944,0.0421776,160.11,159.66,78.3662]
[1633119798144,59.15014178,160.11,159.67,188.7445]
[1633119798344,29.93411067,160.1,159.67,188.7445]
[1633119798550,59.08990862,160.1,159.68,32.01899097]
[1633119798745,31.60306702,160.09,159.68,32.01899097]
[1633119798947,0.0421776,160.08,159.68,32.01899097]
[1633119799146,59.08990862,160.08,159.68,32.01899097]
[1633119799344,0.0421776,160.06,159.68,31.51899097]
[1633119799546,0.0421776,160.06,159.68,28.11470237]
[1633119799746,59.08990862,160.05,159.68,28.11470237]
[1633119799946,0.0421776,160.04,159.68,28.11470237]
[1633119800146,59.13208622,160.04,159.69,1.82187716]
[1633119800347,29.93411067,160.03,159.69,1.82187716]
[1633119800546,59.08990862,160.03,159.69,1.82187716]
[1633119800749,29.15579795,160.02,159.69,1.82187716]
[1633119800947,59.08990862,160.02,159.73,2.57518913]
[1633119801147,0.0421776,160.04,159.77,28.89910337]
[1633119801349,0.0421776,160.17,159.78,108.0]
[1633119801550,188.42026008,160.32,159.82,34.72411712]
[1633119801750,0.0421776,160.28,159.84,6.77548196]
[1633119801947,0.0421776,160.25,159.85,29.20764206]
[1633119802147,0.0421776,160.25,159.86,5.74895635]
[1633119802346,0.0421776,160.22,159.86,5.74895635]
[1633119802547,61.29,160.23,159.85,29.20764206]
[1633119802749,0.0421776,160.15,159.85,29.20764206]
[1633119802947,54.02296247,160.21,159.85,29.20764206]
[1633119802948,0.0421776,160.11,159.85,29.20764206]
[1633119803149,0.0421776,160.08,159.86,114.9521]
[1633119803348,28.26246104,160.1,159.85,29.20764206]
[1633119803548,0.0421776,160.09,159.85,29.20764206]
[1633119803747,26.74579437,160.07,159.85,29.20764206]
[1633119804150,29.02079437,160.14,159.86,108.0]
[1633119804352,29.02079437,160.14,159.88,22.70317284]
[1633119804547,76.40176008,160.18,159.88,22.70317284]
[1633119805148,26.10611422,160.23,159.88,22.70317284]
[1633119805347,0.0421776,160.23,159.9,2.47860073]
[1633119805548,427.13449504,160.24,159.91,30.11347529]
[1633119805748,23.17504773,160.23,159.91,30.11347529]
[1633119806150,0.0421776,160.21,159.91,30.11347529]
[1633119806347,0.0421776,160.19,159.91,30.11347529]
[1633119806751,24.49198384,160.18,159.91,30.11347529]
[1633119806948,61.3321776,160.17,159.91,30.11347529]
[1633119807149,0.0421776,160.16,159.91,30.11347529]
[1633119807347,24.53416144,160.16,159.91,30.11347529]
[1633119807548,85.82416144,160.15,159.91,30.11347529]
[1633119807747,0.0421776,160.14,159.91,30.11347529]
[1633119807947,24.53416144,160.14,159.91,30.11347529]
[1633119808149,85.78198384,160.13,159.91,30.11347529]
[1633119808549,24.53416144,160.12,159.82,117.245]
[1633119808750,0.0421776,160.08,159.82,117.245]
[1633119809150,24.49198384,160.07,159.81,72.8109]
[1633119809353,0.0421776,160.06,159.82,109.3779]
[1633119809551,450.32588376,159.98,159.83,29.46071743]
[1633119811053,474.8178676,159.98,159.81,72.8109]
[1633119811457,536.1078676,159.98,159.67,189.4173]
[1633119811655,0.0421776,159.97,159.68,79.2534]
[1633119812069,23.17638366,159.96,159.69,36.49019282]
[1633119812270,0.0421776,159.95,159.69,36.49019282]
[1633119812473,23.17638366,159.95,159.69,36.49019282]
[1633119812670,0.0421776,159.94,159.69,36.49019282]
[1633119812869,450.32588376,159.98,159.69,36.49019282]
[1633119813069,0.0421776,159.97,159.69,36.49019282]
[1633119813269,3.42814784,159.96,159.56,0.07]
[1633119813469,3.42814784,159.96,159.56,7.14828]
[1633119813470,0.0421776,159.84,159.56,7.14828]
[1633119813670,27.04865051,159.96,159.56,7.14828]
[1633119813671,0.0421776,159.8,159.56,7.14828]
[1633119813872,2.42696801,159.78,159.56,7.14828]
[1633119814070,0.0421776,159.77,159.56,7.14828]
[1633119814269,25.18029086,159.77,159.57,23.07504177]
[1633119814473,25.13811326,159.77,159.56,7.14828]
[1633119814669,27.04865051,159.76,159.56,7.14828]
[1633119814870,0.0421776,159.7,159.56,3.828104]
[1633119815072,27.04865051,159.76,159.54,0.09005594]
[1633119815073,0.0421776,159.75,159.54,0.09005594]
[1633119815473,24.9214466,159.7,159.54,0.09005594]
[1633119815774,0.0421776,159.66,159.54,0.09005594]
[1633119815971,0.0421776,159.66,159.5,28.90458916]
[1633119815972,0.0421776,159.66,159.52,3998.09005594]
[1633119816174,0.0421776,159.6,159.52,3998.09005594]
[1633119816373,0.0421776,159.64,159.53,74.1084]
[1633119816773,25.54452646,159.63,159.52,3998.09005594]
[1633119816975,0.0421776,159.62,159.52,3998.09005594]
[1633119817371,0.0421776,159.64,159.53,78.0634]
[1633119817573,24.0639709,159.61,159.53,78.0634]
[1633119817772,0.0421776,159.6,159.53,78.0634]
[1633119817972,0.0421776,159.64,159.53,78.0634]
[1633119818173,0.0421776,159.64,159.54,23.91241542]
[1633119818972,218.67113277,159.76,159.54,23.91241542]
[1633119819175,0.0421776,159.68,159.54,23.91241542]
[1633119819373,0.0421776,159.64,159.54,23.91241542]
[1633119819574,24.0639709,159.71,159.54,23.91241542]
[1633119819575,0.0421776,159.61,159.54,23.91241542]
[1633119819972,0.0421776,159.65,159.54,23.91241542]